bitfinex-derivatives/quotes_BNBF0:USTF0_20250331
["timestamp","ask_amount","ask_price","bid_price","bid_amount"]
[1743444435145,0.30328737,606.59,605.36,0.33038192]
[1743444435446,0.98203111,606.64,605.36,0.33038192]
[1743444435648,0.30334167,606.63,605.36,0.33038192]
[1743444435843,0.30334167,606.62,605.36,0.33038192]
[1743444436051,0.30334167,606.61,605.36,0.33038192]
[1743444436351,0.30334167,606.6,605.36,0.33038192]
[1743444436544,0.30334167,606.64,605.36,0.33038192]
[1743444436749,0.30334167,606.63,605.36,0.33038192]
[1743444436949,0.30334167,606.62,605.36,0.33038192]
[1743444437152,0.30334167,606.61,605.36,0.33038192]
[1743444437453,0.30334167,606.6,605.36,0.33038192]
[1743444437655,0.30334167,606.65,605.36,0.33038192]
[1743444437854,0.30334167,606.64,605.36,0.33038192]
[1743444438047,1.28554629,606.67,605.36,0.33038192]
[1743444438249,0.28725907,606.64,605.36,0.33038192]
[1743444438453,0.30334167,606.63,605.36,0.33038192]
[1743444441055,0.30334167,606.62,605.36,0.33038192]
[1743444441256,0.30334167,606.61,605.36,0.33038192]
[1743444441461,0.30334167,606.6,605.36,0.33038192]
[1743444441759,0.30334167,606.59,605.36,0.33038192]
[1743444441957,0.30334167,606.58,605.36,0.33038192]
[1743444442154,0.30334167,606.57,605.36,0.33038192]
[1743444442359,0.30334167,606.56,605.36,0.33038192]
[1743444442558,0.30334167,606.55,605.36,0.33038192]
[1743444442757,0.30334167,606.54,605.36,0.33038192]
[1743444442958,0.30334167,606.53,605.36,0.33038192]
[1743444443164,0.30334167,606.58,605.36,0.33038192]
[1743444443460,0.30334167,606.57,605.36,0.33038192]
[1743444443657,0.30334167,606.56,605.36,0.33038192]
[1743444443855,0.30334167,606.55,605.36,0.33038192]
[1743444444060,0.30334167,606.54,605.36,0.33038192]
[1743444444252,0.30334167,606.53,605.36,0.33038192]
[1743444448166,0.28726263,606.54,605.36,0.33038192]
[1743444448359,0.30341053,606.53,605.36,0.33038192]
[1743444450164,0.30341053,606.52,605.36,0.33038192]
[1743444450366,0.28731836,606.52,605.36,0.33038192]
[1743444450562,0.30341053,606.51,605.36,0.33038192]
[1743444451459,0.3033549,606.5,605.36,0.33038192]
[1743444451665,0.3033549,606.49,605.36,0.33038192]
[1743444451864,0.3033549,606.48,605.36,0.33038192]
[1743444452061,0.3033549,606.51,605.36,0.33038192]
[1743444452264,0.3033549,606.5,605.36,0.33038192]
[1743444452458,0.3033549,606.51,605.36,0.33038192]
[1743444452661,0.3033549,606.5,605.36,0.33038192]
[1743444452863,0.3033549,606.51,605.36,0.33038192]
[1743444453062,0.3033549,606.5,605.36,0.33038192]
[1743444453258,0.28731955,606.5,605.36,0.33038192]
[1743444453458,0.3033549,606.49,605.36,0.33038192]
[1743444456265,0.59065903,606.48,605.36,0.33038192]
[1743444456463,0.3033549,606.47,605.36,0.33038192]
[1743444459163,0.59064361,606.46,605.36,0.33038192]
[1743444459369,0.3033549,606.45,605.36,0.33038192]
[1743444461063,0.30333249,606.44,605.36,0.33038192]
[1743444461268,0.30333249,606.43,605.36,0.33038192]
[1743444461570,0.30333249,606.42,605.36,0.33038192]
[1743444461766,0.30333249,606.45,605.36,0.33038192]
[1743444462070,0.30333249,606.44,605.36,0.33038192]
[1743444462270,0.28727685,606.44,605.36,0.33038192]
[1743444462666,0.30332875,606.43,605.36,0.33038192]
[1743444465271,0.59058663,606.42,605.36,0.33038192]
[1743444465471,0.30332875,606.41,605.36,0.33038192]
[1743444468176,0.28725196,606.4,605.36,0.33038192]
[1743444468374,0.30332875,606.39,605.36,0.33038192]
[1743444469173,0.28725196,606.4,605.36,0.33038192]
[1743444474074,0.98191769,607.1,605.36,0.33038192]
[1743444474279,0.28717373,606.46,605.36,0.33038192]
[1743444474678,0.98191769,607.09,605.36,0.33038192]
[1743444474879,0.28716899,606.46,605.36,0.33038192]
[1743444475274,2.51931976,607.67,605.36,0.33038192]
[1743444475477,0.28716544,606.46,605.36,0.33038192]
[1743444475883,0.98122537,607.04,605.36,0.33038192]
[1743444476083,0.28716899,606.46,605.36,0.33038192]
[1743444476383,0.98122537,607.04,605.36,0.33038192]
[1743444476682,0.28716662,606.46,605.36,0.33038192]
[1743444476977,0.98122537,607.02,605.36,0.33038192]
[1743444477186,0.30318314,607.01,605.36,0.33038192]
[1743444477380,0.28715951,606.46,605.36,0.33038192]
[1743444477683,0.98070226,607.13,605.36,0.33038192]
[1743444477884,0.28714648,606.51,605.36,0.33038192]
[1743444478178,0.98070226,607.14,605.36,0.33038192]
[1743444478386,0.30315531,607.13,605.36,0.33038192]
[1743444478578,0.28713227,606.51,605.36,0.33038192]
[1743444478784,0.98070226,607.14,605.36,0.33038192]
[1743444479084,0.28711924,606.55,605.36,0.33038192]
[1743444479485,0.98070226,607.25,605.36,0.33038192]
[1743444479784,0.28710502,606.56,605.36,0.33038192]
[1743444479984,0.32935906,607.24,605.36,0.33038192]
[1743444480184,0.30313045,607.23,605.36,0.33038192]
[1743444480389,0.28711924,606.56,605.36,0.33038192]
[1743444480585,0.98070226,607.17,605.36,0.33038192]
[1743444480785,0.30312623,607.16,605.36,0.33038192]
[1743444480981,0.28711687,606.56,605.36,0.33038192]
[1743444481181,0.98070226,607.18,605.36,0.33038192]
[1743444481382,0.30312621,607.17,605.36,0.33038192]
[1743444481582,0.28712279,606.56,605.36,0.33038192]
[1743444481779,0.98070226,607.19,605.36,0.33038192]
[1743444482086,0.28711805,606.56,605.36,0.33038192]
[1743444482483,0.97944105,607.18,605.36,0.33038192]
[1743444482683,0.28711095,606.56,605.37,2.00713056]
[1743444482887,0.3031336,606.55,605.39,0.33036554]
[1743444483187,0.32935906,607.24,605.39,0.33036554]
[1743444483488,0.28703398,606.61,605.39,0.33036554]
[1743444483686,0.32935906,607.24,605.39,0.33036554]
[1743444483886,0.28708963,606.61,605.39,0.33036554]
[1743444484283,0.32935906,607.24,605.39,0.33036554]
[1743444484481,0.28707424,606.61,605.39,0.33036554]
[1743444484883,0.32935906,607.24,605.39,0.33036554]
[1743444485083,0.28707305,606.61,605.39,0.33036554]
[1743444485483,0.32935906,607.24,605.39,0.33036554]
[1743444485683,0.28707305,606.61,605.39,0.33036554]
[1743444486089,0.32935906,607.24,605.39,0.33036554]
[1743444486386,0.28707305,606.61,605.39,0.33036554]
[1743444486590,1.30880011,607.24,605.39,0.33036554]
[1743444486790,0.30312505,607.23,605.39,0.33036554]
[1743444486983,0.28707305,606.61,605.39,0.33036554]
[1743444487184,1.30880011,607.24,605.39,0.33036554]
[1743444487390,0.30312215,607.23,605.39,0.33036554]
[1743444487586,0.28711213,606.61,605.39,0.33036554]
[1743444487790,1.30880011,607.24,605.39,0.33036554]
[1743444487989,0.30312215,607.23,605.39,0.33036554]
[1743444488186,0.28712753,606.6,605.39,0.33036554]
[1743444488390,1.30881096,607.22,605.39,0.33036554]
[1743444488590,0.63250323,607.21,605.39,0.33036554]
[1743444488788,0.28712397,606.59,605.39,0.33036554]
[1743444488983,0.32938076,607.2,605.39,0.33036554]
[1743444489192,0.30312762,607.19,605.39,0.33036554]
[1743444489387,0.28712279,606.58,605.39,0.33036554]
[1743444489589,0.32938076,607.2,605.39,0.33036554]
[1743444489791,0.30312704,607.19,605.39,0.33036554]
[1743444489989,0.28712161,606.57,605.39,0.33036554]
[1743444490190,0.32938076,607.2,605.39,0.33036554]
[1743444490387,0.30313252,607.19,605.39,0.33036554]
[1743444490588,0.28711805,606.56,605.39,0.33036554]
[1743444490794,0.32938076,607.2,605.39,0.33036554]
[1743444490989,0.30313182,607.19,605.39,0.33036554]
[1743444491195,0.2871145,606.55,605.39,0.33036554]
[1743444491490,0.32938076,607.2,605.39,0.33036554]
[1743444491698,0.28711687,606.54,605.39,0.33036554]
[1743444492195,0.32938076,607.2,605.39,0.33036554]
[1743444492390,0.2871145,606.54,605.39,0.33036554]
[1743444492691,0.97944105,607.16,605.39,0.33036554]
[1743444493095,0.28710384,606.58,605.39,0.33036554]
[1743444493296,0.32938076,607.2,605.39,0.33036554]
[1743444493491,0.30312579,607.19,605.39,0.33036554]
[1743444493694,0.28710621,606.58,605.39,0.33036554]
[1743444493889,0.32938076,607.2,605.39,0.33036554]
[1743444494091,0.28710384,606.57,605.39,0.33036554]
[1743444494497,0.32938076,607.2,605.39,0.33036554]
[1743444494800,0.28713819,606.57,605.39,0.33036554]
[1743444494992,0.32938076,607.2,605.39,0.33036554]
[1743444495198,0.3031082,607.19,605.39,0.33036554]
[1743444495399,0.28714648,606.61,605.39,0.33036554]
[1743444495791,0.32938076,607.2,605.39,0.33036554]
[1743444495997,0.28714293,606.61,605.39,0.33036554]
[1743444496396,0.32938076,607.2,605.39,0.33036554]
[1743444496594,0.28712516,606.67,605.39,0.33036554]
[1743444496898,0.32938076,607.2,605.39,0.33036554]
[1743444497194,0.28711687,606.74,605.39,0.33036554]
[1743444497595,0.30303277,606.73,605.4,2.00713056]
[1743444497801,0.32938076,607.2,605.42,0.33034917]
[1743444497992,0.2870991,606.76,605.42,0.33034917]
[1743444498300,0.32938076,607.2,605.42,0.33034917]
[1743444498503,0.30301069,607.19,605.42,0.33034917]
[1743444498700,0.28709437,606.78,605.42,0.33034917]
[1743444498900,0.32938076,607.2,605.42,0.33034917]
[1743444499095,0.30300642,607.19,605.42,0.33034917]
[1743444499300,0.28708016,606.78,605.42,0.33034917]
[1743444499601,0.32938076,607.2,605.42,0.33034917]
[1743444499804,0.2870766,606.78,605.42,0.33034917]
[1743444500199,0.32938076,607.2,605.42,0.33034917]
[1743444500401,0.28707542,606.77,605.42,0.33034917]
[1743444500795,0.32938076,607.2,605.42,0.33034917]
[1743444500994,0.28706121,606.76,605.42,0.33034917]
[1743444501196,0.30304942,606.75,605.42,0.33034917]
[1743444501602,0.28706121,606.75,605.42,0.33034917]
[1743444501799,0.30304942,606.74,605.42,0.33034917]
[1743444504304,0.28715359,606.73,605.42,0.33034917]
[1743444504704,0.30304942,606.72,605.42,0.33034917]
[1743444507306,0.2871761,606.71,605.42,0.33034917]
[1743444507802,0.30311784,606.7,605.42,0.33034917]
[1743444510209,0.30311784,606.69,605.42,0.33034917]
[1743444510404,0.30311784,606.68,605.42,0.33034917]
[1743444513210,0.30311784,607.15,605.42,0.33034917]
[1743444513406,0.5903698,606.67,605.42,0.33034917]
[1743444513606,0.30311784,606.66,605.42,0.33034917]
[1743444513810,0.32941331,607.14,605.42,0.33034917]
[1743444514013,0.28725433,606.66,605.42,0.33034917]
[1743444514209,0.32941331,607.14,605.42,0.33034917]
[1743444514418,0.30319312,607.13,605.42,0.33034917]
[1743444514611,0.28720217,606.65,605.42,0.33034917]
[1743444514914,0.32942416,607.12,605.42,0.33034917]
[1743444515111,0.28720454,606.64,605.42,0.33034917]
[1743444515511,0.32942416,607.12,605.42,0.33034917]
[1743444515708,0.28720336,606.63,605.42,0.33034917]
[1743444516109,0.32942416,607.12,605.42,0.33034917]
[1743444516315,0.28720336,606.62,605.42,0.33034917]
[1743444516712,0.32942416,607.12,605.42,0.33034917]
[1743444516912,0.28718677,606.61,605.42,0.33034917]
[1743444517314,0.32942416,607.12,605.42,0.33034917]
[1743444517513,0.28720928,606.6,605.42,0.33034917]
[1743444517920,0.32942416,607.12,605.42,0.33034917]
[1743444518121,0.28718558,606.59,605.42,0.33034917]
[1743444518515,0.32942416,607.12,605.42,0.33034917]
[1743444518720,0.28718203,606.58,605.42,0.33034917]
[1743444519117,0.32942416,607.12,605.42,0.33034917]
[1743444519321,0.28716899,606.61,605.42,0.33034917]
[1743444519618,0.32942416,607.12,605.42,0.33034917]
[1743444519922,0.28714056,606.61,605.42,0.33034917]
[1743444520320,0.32942416,607.12,605.42,0.33034917]
[1743444520519,0.28713819,606.61,605.42,0.33034917]
[1743444520916,0.32942416,607.12,605.42,0.33034917]
[1743444521122,0.28715477,606.6,605.42,0.33034917]
[1743444521522,0.32942416,607.12,605.42,0.33034917]
[1743444521722,0.28715122,606.59,605.42,0.33034917]
[1743444522118,0.32942416,607.12,605.42,0.33034917]
[1743444522324,0.28714411,606.58,605.42,0.33034917]
[1743444522824,0.32942416,607.12,605.42,0.33034917]
[1743444523022,0.28714056,606.57,605.42,0.33034917]
[1743444523223,0.30317433,606.56,605.43,2.00713056]
[1743444523418,0.30317433,606.55,605.42,0.33034917]
[1743444523619,0.30317433,606.54,605.42,0.33034917]
[1743444523919,0.28717018,606.56,605.42,0.33034917]
[1743444525021,0.32942416,607.12,605.42,0.33034917]
[1743444525326,0.3031136,607.11,605.42,0.33034917]
[1743444525521,0.28712871,606.56,605.42,0.33034917]
[1743444525726,0.32942416,607.12,605.42,0.33034917]
[1743444525923,0.30309546,607.11,605.42,0.33034917]
[1743444526125,0.28710502,606.66,605.42,0.33034917]
[1743444526327,0.32942416,607.12,605.42,0.33034917]
[1743444526525,0.30305898,607.11,605.42,0.33034917]
[1743444526726,0.28710384,606.66,605.42,0.33034917]
[1743444526922,0.32942416,607.12,605.42,0.33034917]
[1743444527223,0.28708371,606.73,605.42,0.33034917]
[1743444527624,0.32942416,607.12,605.43,2.00713056]
[1743444527821,0.32942416,607.12,605.45,0.33033281]
[1743444527822,0.28708134,606.73,605.45,0.33033281]
[1743444528022,0.28708134,606.73,605.46,2.00713056]
[1743444528225,0.32942416,607.12,605.48,0.33031644]
[1743444528525,0.28700084,606.73,605.49,2.00713056]
[1743444528727,0.32942416,607.12,605.51,0.33030007]
[1743444528927,0.32942416,607.12,605.52,2.00713056]
[1743444528928,0.30302396,607.11,605.52,2.00713056]
[1743444529128,0.28699374,606.73,605.53,2.00713056]
[1743444529329,0.32942416,607.12,605.55,0.33027825]
[1743444529525,0.30302589,607.11,605.56,2.00713056]
[1743444529724,0.28699019,606.73,605.58,0.33026189]
[1743444529930,0.32942416,607.12,605.59,2.00713056]
[1743444530124,0.3030265,607.11,605.61,0.33024553]
[1743444530327,0.28698546,606.73,605.62,2.00713056]
[1743444530531,0.32942416,607.12,605.64,0.33022917]
[1743444530829,0.28697954,606.73,605.65,2.00713056]
[1743444531029,0.28697954,606.73,605.67,0.33021282]
[1743444531325,0.32942416,607.12,605.67,0.33021282]
[1743444531529,0.28697481,606.73,605.67,0.33021282]
[1743444531724,0.32942416,607.12,605.67,0.33021282]
[1743444531925,0.30303427,607.11,605.67,0.33021282]
[1743444532124,0.28698072,606.73,605.67,0.33021282]
[1743444532429,0.32942416,607.12,605.67,0.33021282]
[1743444532631,0.28698191,606.73,605.67,0.33021282]
[1743444533030,0.98173391,607.37,605.67,0.33021282]
[1743444533231,0.28701268,606.78,605.67,0.33021282]
[1743444534128,0.98173391,607.38,605.67,0.33021282]
[1743444534330,0.28697717,606.78,605.67,0.33021282]
[1743444534525,2.51931976,607.8,605.67,0.33021282]
[1743444534826,0.98157793,607.38,605.67,0.33021282]
[1743444535030,0.28697481,606.78,605.67,0.33021282]
[1743444535231,0.98157793,607.4,605.67,0.33021282]
[1743444535427,0.28697126,606.78,605.67,0.33021282]
[1743444535827,0.98157793,607.4,605.67,0.33021282]
[1743444536025,0.30300894,607.39,605.67,0.33021282]
[1743444536229,0.28696416,606.78,605.67,0.33021282]
[1743444536530,0.32906643,607.78,605.67,0.33021282]
[1743444536830,0.28696771,606.78,605.67,0.33021282]
[1743444537031,0.98145472,607.52,605.67,0.33021282]
[1743444537226,0.63220022,607.51,605.67,0.33021282]
[1743444537426,0.28694996,606.78,605.67,0.33021282]
[1743444537632,0.3292181,607.5,605.67,0.33021282]
[1743444537827,0.30298587,607.49,605.67,0.33021282]
[1743444538132,0.28695233,606.78,605.67,0.33021282]
[1743444538334,0.32922894,607.48,605.67,0.33021282]
[1743444538532,0.28695469,606.78,605.67,0.33021282]
[1743444538833,0.32922894,607.48,605.67,0.33021282]
[1743444539132,0.2870257,606.78,605.67,0.33021282]
[1743444539632,0.32922894,607.48,605.67,0.33021282]
[1743444539833,0.28700913,606.83,605.67,0.33021282]
[1743444540029,0.32922894,607.48,605.67,0.33021282]
[1743444540432,0.28700202,606.85,605.67,0.33021282]
[1743444540829,0.32922894,607.48,605.67,0.33021282]
[1743444541033,0.28699729,606.86,605.67,0.33021282]
[1743444541431,0.32922894,607.48,605.67,0.33021282]
[1743444541633,0.28699256,606.87,605.67,0.33021282]
[1743444542034,0.32922894,607.48,605.67,0.33021282]
[1743444542335,0.28698782,606.89,605.67,0.33021282]
[1743444542537,0.32922894,607.48,605.67,0.33021282]
[1743444542740,0.30296674,607.47,605.67,0.33021282]
[1743444542933,0.28699374,606.91,605.67,0.33021282]
[1743444543137,0.32922894,607.48,605.67,0.33021282]
[1743444543337,0.30297481,607.47,605.67,0.33021282]
[1743444543533,0.28701031,606.9,605.67,0.33021282]
[1743444543730,0.32922894,607.48,605.67,0.33021282]
[1743444543929,0.30299002,607.47,605.67,0.33021282]
[1743444544137,0.28705056,606.89,605.67,0.33021282]
[1743444544333,0.32922894,607.48,605.67,0.33021282]
[1743444544531,0.3029933,607.47,605.67,0.33021282]
[1743444544741,0.28705648,606.88,605.67,0.33021282]
[1743444545037,0.98145472,607.44,605.67,0.33021282]
[1743444545234,1.61373701,607.43,605.67,0.33021282]
[1743444545441,0.28706121,606.87,605.67,0.33021282]
[1743444545633,1.31071618,607.42,605.67,0.33021282]
[1743444545837,0.30302871,607.41,605.67,0.33021282]
[1743444546037,0.28706239,606.86,605.67,0.33021282]
[1743444546339,0.98145472,607.41,605.67,0.33021282]
[1743444546532,0.30303173,607.4,605.67,0.33021282]
[1743444546734,0.28703635,606.85,605.67,0.33021282]
[1743444546932,0.98145472,607.41,605.67,0.33021282]
[1743444547136,0.30303172,607.4,605.67,0.33021282]
[1743444547337,0.30303172,607.39,605.67,0.33021282]
[1743444547534,0.30303172,607.38,605.67,0.33021282]
[1743444547738,0.30303172,607.37,605.67,0.33021282]
[1743444547937,0.30303093,607.36,605.67,0.33021282]
[1743444548235,1.28448565,607.35,605.67,0.33021282]
[1743444548441,1.28448565,607.34,605.67,0.33021282]
[1743444548741,1.6137959,607.33,605.67,0.33021282]
[1743444548933,0.63234661,607.32,605.67,0.33021282]
[1743444549137,0.63235203,607.31,605.67,0.33021282]
[1743444549335,0.30303093,607.3,605.67,0.33021282]
[1743444549641,0.30305906,607.29,605.67,0.33021282]
[1743444549841,0.30305906,607.28,605.67,0.33021282]
[1743444550040,0.30305906,607.27,605.67,0.33021282]
[1743444550241,0.30305906,607.26,605.67,0.33021282]
[1743444550440,0.30305906,607.25,605.67,0.33021282]
[1743444550741,0.30305906,607.24,605.67,0.33021282]
[1743444550938,0.30305906,607.23,605.67,0.33021282]
[1743444551137,0.30305906,607.22,605.67,0.33021282]
[1743444551342,0.30305906,607.21,605.67,0.33021282]
[1743444551541,0.30305906,607.2,605.67,0.33021282]
[1743444551737,0.30305906,607.3,605.67,0.33021282]
[1743444551944,0.30305906,607.29,605.67,0.33021282]
[1743444552144,0.30305906,607.28,605.67,0.33021282]
[1743444552344,0.30305906,607.27,605.67,0.33021282]
[1743444552546,0.30305906,607.26,605.67,0.33021282]
[1743444552747,0.30305906,607.25,605.67,0.33021282]
[1743444552939,0.30305906,607.3,605.67,0.33021282]
[1743444553244,0.30305906,607.29,605.67,0.33021282]
[1743444553439,0.30305906,607.28,605.67,0.33021282]
[1743444553638,0.98014301,607.23,605.67,0.33021282]
[1743444553841,0.30305906,607.22,605.67,0.33021282]
[1743444554041,1.28320207,607.21,605.67,0.33021282]
[1743444554240,0.30305906,607.2,605.67,0.33021282]
[1743444554443,0.30305906,607.19,605.67,0.33021282]
[1743444554641,0.30305906,607.18,605.67,0.33021282]
[1743444554847,0.30305906,607.17,605.67,0.33021282]
[1743444555045,0.30305906,607.16,605.67,0.33021282]
[1743444555241,0.30305906,607.15,605.67,0.33021282]
[1743444555547,0.30305906,607.14,605.67,0.33021282]
[1743444555748,0.30305906,607.13,605.67,0.33021282]
[1743444555949,0.28705411,607.15,605.67,0.33021282]
[1743444556248,0.30311368,607.14,605.67,0.33021282]
[1743444556443,0.30311368,607.13,605.67,0.33021282]
[1743444556646,0.30311368,607.12,605.67,0.33021282]
[1743444556845,0.30311368,607.11,605.67,0.33021282]
[1743444557046,0.28705411,607.15,605.67,0.33021282]
[1743444557047,0.30311368,607.1,605.67,0.33021282]
[1743444557248,0.30311368,607.09,605.67,0.33021282]
[1743444557447,0.30311368,607.08,605.67,0.33021282]
[1743444557645,0.30311368,607.14,605.67,0.33021282]
[1743444557845,0.30311368,607.13,605.67,0.33021282]
[1743444558045,0.30311368,607.12,605.67,0.33021282]
[1743444558244,0.30311368,607.11,605.67,0.33021282]
[1743444558445,0.30311368,607.1,605.67,0.33021282]
[1743444558646,0.30311368,607.11,605.67,0.33021282]
[1743444558843,0.30311368,607.1,605.67,0.33021282]
[1743444559047,0.30311368,607.09,605.67,0.33021282]
[1743444559243,0.30311368,607.08,605.67,0.33021282]
[1743444559445,0.30311368,607.07,605.67,0.33021282]
[1743444559645,0.30311368,607.06,605.67,0.33021282]
[1743444559853,0.30311368,607.05,605.67,0.33021282]
[1743444560145,0.30311368,607.04,605.67,0.33021282]
[1743444560347,0.30311368,607.03,605.67,0.33021282]
[1743444560545,0.30311368,607.02,605.67,0.33021282]
[1743444560746,0.30311368,607.01,605.67,0.33021282]
[1743444560947,0.30311368,607.11,605.67,0.33021282]
[1743444561149,0.30311368,607.23,605.67,0.33021282]
[1743444561353,0.30311368,607.22,605.67,0.33021282]
[1743444561554,0.28706121,607.1,605.67,0.33021282]
[1743444561853,0.30311368,607.09,605.67,0.33021282]
[1743444562054,0.30311368,607.08,605.67,0.33021282]
[1743444562254,0.30311368,607.07,605.67,0.33021282]
[1743444562450,0.30311368,607.06,605.67,0.33021282]
[1743444562647,0.28706121,607.09,605.67,0.33021282]
[1743444562849,0.30310326,607.08,605.67,0.33021282]
[1743444563052,0.30310326,607.07,605.67,0.33021282]
[1743444563250,0.30310326,607.06,605.67,0.33021282]
[1743444563551,0.30310326,607.05,605.67,0.33021282]
[1743444563750,0.30310326,607.04,605.67,0.33021282]
[1743444563955,0.30310326,607.03,605.67,0.33021282]
[1743444564152,0.30310326,607.02,605.67,0.33021282]
[1743444564459,0.30311282,607.01,605.67,0.33021282]
[1743444564654,0.30311282,607.02,605.67,0.33021282]
[1743444564852,0.28706831,607.03,605.67,0.33021282]
[1743444564853,0.30311282,607.01,605.67,0.33021282]
[1743444565254,0.30311282,607.02,605.67,0.33021282]
[1743444565458,0.30311282,607.0,605.67,0.33021282]
[1743444565758,0.30311282,606.99,605.67,0.33021282]
[1743444566058,0.30309474,606.98,605.67,0.33021282]
[1743444566259,0.30309474,607.02,605.67,0.33021282]
[1743444566559,0.30309474,607.01,605.67,0.33021282]
[1743444566855,0.30309474,607.0,605.67,0.33021282]
[1743444567059,0.28706831,607.03,605.67,0.33021282]
[1743444567060,0.30309474,607.02,605.67,0.33021282]
[1743444567358,0.2870257,606.99,605.67,0.33021282]
[1743444567558,0.30309474,606.98,605.67,0.33021282]
[1743444568856,0.30309474,606.98,605.68,2.00713056]
[1743444569055,0.30309474,606.98,605.7,0.33019646]
[1743444569455,0.30309474,606.98,605.7,2.33732702]
[1743444569655,0.30309474,606.98,605.7,0.33019646]
[1743444569858,0.30309474,606.98,605.7,2.33732702]
[1743444570055,0.30309474,606.98,605.7,0.33019646]
[1743444570255,0.28695824,606.97,605.7,2.33732702]
[1743444570459,0.30309474,606.96,605.7,0.33019646]
[1743444570660,0.30309474,606.96,605.7,2.33732702]
[1743444570861,0.30298702,606.95,605.7,2.33732702]
[1743444571058,0.30298702,606.94,605.7,0.33019646]
[1743444571356,0.30298702,606.93,605.7,0.33019646]
[1743444571563,0.30298702,606.92,605.7,0.33019646]
[1743444571862,0.30298702,606.91,605.7,0.33019646]
[1743444572061,0.28695824,606.97,605.7,0.33019646]
[1743444572964,0.98033434,607.64,605.7,0.33019646]
[1743444573162,0.63206071,607.63,605.7,0.33019646]
[1743444573362,0.2869405,606.96,605.7,0.33019646]
[1743444573764,0.32914767,607.63,605.7,0.33019646]
[1743444573965,0.28688491,607.0,605.7,0.33019646]
[1743444574358,0.32914767,607.63,605.7,0.33019646]
[1743444574562,0.28685417,607.12,605.7,0.33019646]
[1743444574960,0.32914767,607.63,605.7,0.33019646]
[1743444575162,0.28685062,607.12,605.7,0.33019646]
[1743444575562,0.32914767,607.63,605.7,0.33019646]
[1743444575761,0.28684707,607.12,605.7,0.33019646]
[1743444576164,0.32914767,607.63,605.71,2.00713056]
[1743444576465,0.28684116,607.12,605.73,0.33018011]
[1743444576661,0.32914767,607.63,605.73,0.33018011]
[1743444576862,0.30291006,607.62,605.73,0.33018011]
[1743444577067,0.28685298,607.11,605.73,0.33018011]
[1743444577267,0.32914767,607.63,605.73,0.33018011]
[1743444577459,0.30290373,607.62,605.73,0.33018011]
[1743444577663,0.28689673,607.1,605.73,0.33018011]
[1743444577863,0.32914767,607.63,605.73,0.33018011]
[1743444578067,0.30291687,607.62,605.73,0.33018011]
[1743444578264,0.28690738,607.09,605.73,0.33018011]
[1743444578466,0.32915308,607.62,605.73,0.33018011]
[1743444578665,0.3029255,607.61,605.73,0.33018011]
[1743444578868,0.28694523,607.08,605.73,0.33018011]
[1743444579081,0.32915308,607.62,605.73,0.33018011]
[1743444579269,0.30292638,607.61,605.73,0.33018011]
[1743444579464,0.28694405,607.07,605.73,0.33018011]
[1743444579665,0.32916392,607.6,605.73,0.33018011]
[1743444579865,0.3029265,607.59,605.73,0.33018011]
[1743444580072,0.2869405,607.06,605.73,0.33018011]
[1743444580371,0.32916392,607.6,605.73,0.33018011]
[1743444580571,0.2869405,607.05,605.73,0.33018011]
[1743444580871,0.32916392,607.6,605.73,0.33018011]
[1743444581070,0.3029265,607.59,605.73,0.33018011]
[1743444581268,0.2869405,607.04,605.73,0.33018011]
[1743444581468,0.32916392,607.6,605.73,0.33018011]
[1743444581665,0.30290439,607.59,605.73,0.33018011]
[1743444581872,0.28692275,607.03,605.73,0.33018011]
[1743444582071,0.32916392,607.6,605.73,0.33018011]
[1743444582273,0.3029027,607.59,605.73,0.33018011]
[1743444582573,0.28691921,607.02,605.73,0.33018011]
[1743444582773,0.32916392,607.6,605.73,0.33018011]
[1743444582974,0.28692275,607.01,605.73,0.33018011]
[1743444583273,0.32916392,607.6,605.73,0.33018011]
[1743444583473,0.30288268,607.59,605.73,0.33018011]
[1743444583669,0.28692039,607.0,605.73,0.33018011]
[1743444583865,0.32916392,607.6,605.73,0.33018011]
[1743444584075,0.3028963,607.59,605.73,0.33018011]
[1743444584268,0.28691684,606.99,605.73,0.33018011]
[1743444584472,0.32916392,607.6,605.73,0.33018011]
[1743444584673,0.30290203,607.59,605.74,2.00713056]
[1743444584874,0.28691447,606.98,605.75,2.00713056]
[1743444585068,0.28691447,606.98,605.76,2.33729432]
[1743444585274,0.32916392,607.6,605.77,2.00713056]
[1743444585474,0.28684825,606.97,605.78,2.00713056]
[1743444585674,0.28684825,606.97,605.79,2.33727797]
[1743444585875,0.32916392,607.6,605.81,0.33013651]
[1743444586069,0.28684471,606.97,605.82,2.00713056]
[1743444586274,0.28684471,606.97,605.84,0.33012016]
[1743444586470,0.32916392,607.6,605.85,2.00713056]
[1743444586670,0.28684116,606.97,605.87,0.33010381]
[1743444586876,0.28684116,606.97,605.88,2.00713056]
[1743444587075,0.32916392,607.6,605.9,0.33008747]
[1743444587277,0.28683407,606.97,605.9,0.33008747]
[1743444587677,0.32916392,607.6,605.9,0.33008747]
[1743444587878,0.28683407,606.97,605.9,0.33008747]
[1743444588272,0.32916392,607.6,605.9,0.33008747]
[1743444588476,0.28690501,606.97,605.9,0.33008747]
[1743444588976,0.32916392,607.6,605.9,0.33008747]
[1743444589177,0.28690146,606.97,605.9,0.33008747]
[1743444589480,0.32916392,607.6,605.9,0.33008747]
[1743444589779,0.28690028,606.97,605.9,0.33008747]